bitfinex-derivatives/quotes_BTCF0:USTF0_20251002
["timestamp","ask_amount","ask_price","bid_price","bid_amount"]
[1759415346780,0.40694401,119710.0,119700.0,0.4697711]
[1759415346969,0.8418485,119710.0,119700.0,0.4697711]
[1759415347172,0.8418885,119710.0,119700.0,0.4697711]
[1759415349879,1.16534401,119710.0,119700.0,0.4697711]
[1759415350182,1.16534401,119710.0,119700.0,0.38628]
[1759415356884,0.8418885,119710.0,119700.0,0.38628]
[1759415357183,1.16534401,119710.0,119700.0,0.38628]
[1759415358085,1.16534401,119710.0,119700.0,0.02548]
[1759415358483,0.40698401,119710.0,119700.0,0.02548]
[1759415358783,2.24951952,119710.0,119700.0,0.001]
[1759415358993,0.0834911,119700.0,119690.0,0.03548]
[1759415359184,0.40694661,119700.0,119690.0,0.118978]
[1759415359385,0.8417711,119700.0,119690.0,0.44243351]
[1759415359594,0.8417711,119700.0,119690.0,0.879778]
[1759415359795,0.8417711,119700.0,119690.0,1.20323351]
[1759415360094,0.8417711,119700.0,119690.0,1.20723351]
[1759415360792,0.8417711,119700.0,119690.0,1.21023351]
[1759415361093,0.0834911,119700.0,119690.0,1.21023351]
[1759415361288,0.8417711,119700.0,119690.0,1.21023351]
[1759415362096,0.40698401,119710.0,119690.0,1.21023351]
[1759415362294,0.0835285,119710.0,119700.0,0.80322661]
[1759415362595,0.8418085,119710.0,119700.0,0.80322661]
[1759415363093,0.8418085,119710.0,119700.0,0.4797711]
[1759415363495,0.8418085,119710.0,119700.0,0.4857711]
[1759415363991,0.0835285,119710.0,119700.0,0.4827711]
[1759415364194,0.8418085,119710.0,119700.0,0.80922661]
[1759415364397,0.8418085,119710.0,119700.0,0.81522661]
[1759415364899,4e-05,119710.0,119700.0,1.21522661]
[1759415365297,0.8418041,119710.0,119700.0,1.21522661]
[1759415366192,0.0835241,119710.0,119700.0,1.21522661]
[1759415366496,4e-05,119710.0,119700.0,1.53897332]
[1759415367195,0.0834743,119730.0,119700.0,1.62246442]
[1759415367500,0.7643543,119730.0,119720.0,0.44206821]
[1759415367690,1.08795541,119730.0,119720.0,0.44206821]
[1759415367892,1.08795541,119730.0,119720.0,0.80286821]
[1759415368098,0.40707541,119730.0,119720.0,0.80286821]
[1759415368401,1.16531541,119730.0,119720.0,0.80286821]
[1759415369401,0.40707541,119730.0,119720.0,0.80286821]
[1759415369601,1.16531541,119730.0,119720.0,0.80286821]
[1759415370003,0.40707541,119730.0,119720.0,0.80286821]
[1759415370302,1.16527541,119730.0,119720.0,0.80286821]
[1759415370502,0.0834743,119730.0,119720.0,0.80286821]
[1759415370703,0.8416743,119730.0,119720.0,1.12646932]
[1759415371103,1.16527541,119730.0,119720.0,0.80286821]
[1759415372809,1.08180111,119730.0,119720.0,0.80286821]
[1759415373099,0.40706791,119740.0,119730.0,0.0834702]
[1759415373304,1.16522791,119740.0,119730.0,0.44206131]
[1759415373799,0.40706791,119740.0,119730.0,0.44206131]
[1759415374003,1.16522791,119740.0,119730.0,0.80286131]
[1759415374199,0.00842323,119750.0,119740.0,0.1184532]
[1759415374200,0.09188443,119750.0,119740.0,0.1184532]
[1759415374400,1.16526231,119750.0,119740.0,0.80285431]
[1759415374901,1.08180111,119750.0,119740.0,0.80285431]
[1759415375306,0.7582,119750.0,119740.0,0.81126682]
[1759415375508,1.08180111,119750.0,119740.0,0.81126682]
[1759415375899,1.16525731,119750.0,119740.0,0.80285431]
[1759415376101,1.16925731,119750.0,119740.0,0.80285431]
[1759415376500,1.16925731,119750.0,119740.0,0.4792532]
[1759415376702,0.8456562,119750.0,119740.0,0.4792532]
[1759415376903,0.8456162,119750.0,119740.0,0.80285431]
[1759415377103,1.16521731,119750.0,119740.0,0.80285431]
[1759415377407,1.16921731,119750.0,119740.0,0.4792532]
[1759415377608,0.8456162,119750.0,119740.0,0.4792532]
[1759415377809,1.16921731,119750.0,119740.0,0.4792532]
[1759415378202,1.16921731,119750.0,119740.0,0.80285431]
[1759415378514,1.16921731,119750.0,119740.0,0.4792532]
[1759415378708,1.16921731,119750.0,119740.0,0.80285431]
[1759415379306,1.16921731,119750.0,119740.0,0.4792532]
[1759415379512,1.08576111,119750.0,119740.0,0.4792532]
[1759415379708,1.08576111,119750.0,119740.0,0.80285431]
[1759415380411,0.32764111,119750.0,119740.0,0.80285431]
[1759415380608,1.08568111,119750.0,119740.0,0.80285431]
[1759415380813,0.32764111,119750.0,119740.0,0.80285431]
[1759415381111,1.08568111,119750.0,119740.0,0.80285431]
[1759415381312,0.76208,119750.0,119740.0,0.80285431]
[1759415381611,1.08568111,119750.0,119740.0,0.80285431]
[1759415381811,1.08168111,119750.0,119740.0,0.80285431]
[1759415382009,1.08468111,119750.0,119740.0,0.80285431]
[1759415382516,1.16513731,119750.0,119740.0,0.4792532]
[1759415382715,1.16813731,119750.0,119740.0,0.4792532]
[1759415384516,0.8445362,119750.0,119740.0,0.4792532]
[1759415384716,1.16813731,119750.0,119740.0,0.4792532]
[1759415386816,1.16813731,119750.0,119740.0,0.39579]
[1759415387714,1.16813731,119750.0,119740.0,0.4792532]
[1759415389518,1.16813731,119750.0,119740.0,0.39579]
[1759415390122,1.16813731,119750.0,119740.0,0.4792532]
[1759415391618,1.16797731,119750.0,119740.0,0.4792532]
[1759415391925,0.41009731,119750.0,119740.0,0.4792532]
[1759415392126,0.8443762,119750.0,119740.0,0.4792532]
[1759415392328,1.16797731,119750.0,119740.0,0.4792532]
[1759415392720,0.41009731,119750.0,119740.0,0.4792532]
[1759415392920,1.16797731,119750.0,119740.0,0.4792532]
[1759415394627,0.8443762,119750.0,119740.0,0.80285431]
[1759415394829,1.16797731,119750.0,119740.0,0.80285431]
[1759415395524,1.16797731,119750.0,119740.0,0.4792532]
[1759415395730,1.16797731,119750.0,119740.0,0.80285431]
[1759415396430,0.41009731,119750.0,119740.0,0.80285431]
[1759415396629,1.16793731,119750.0,119740.0,0.80285431]
[1759415397628,0.41009731,119750.0,119740.0,0.80285431]
[1759415397829,1.16793731,119750.0,119740.0,0.80285431]
[1759415398527,1.16793731,119750.0,119740.0,0.4792532]
[1759415398727,0.41009731,119750.0,119740.0,0.80285431]
[1759415399031,1.16793731,119750.0,119740.0,0.80285431]
[1759415400124,0.32664111,119750.0,119740.0,0.80285431]
[1759415400325,0.00304,119750.0,119740.0,1.52645542]
[1759415400529,0.76088,119750.0,119740.0,1.52645542]
[1759415400731,0.00304,119750.0,119740.0,1.52645542]
[1759415400925,0.00304,119750.0,119740.0,0.8792532]
[1759415401232,0.00304,119750.0,119740.0,2.28425542]
[1759415402130,0.00304,119750.0,119740.0,1.6370532]
[1759415402433,0.06537414,119780.0,119770.0,0.1194423]
[1759415402730,1.40500222,119780.0,119770.0,0.4802423]
[1759415403231,1.49664036,119780.0,119770.0,0.4802423]
[1759415404726,1.49864036,119780.0,119770.0,0.4802423]
[1759415405330,1.49664036,119780.0,119770.0,0.4802423]
[1759415405630,1.50064036,119780.0,119770.0,0.4802423]
[1759415405835,0.80978962,119780.0,119770.0,0.4802423]
[1759415406026,1.56754962,119780.0,119770.0,0.4802423]
[1759415406227,0.80978962,119780.0,119770.0,0.4802423]
[1759415406730,1.56750962,119780.0,119770.0,0.4802423]
[1759415406925,0.9203074,119780.0,119770.0,0.4802423]
[1759415407127,1.56750962,119780.0,119770.0,0.4802423]
[1759415407325,0.09563814,119780.0,119770.0,0.80384341]
[1759415407530,0.76172,119780.0,119770.0,0.80384341]
[1759415407730,1.08532111,119780.0,119770.0,0.80384341]
[1759415408026,1.16875631,119780.0,119770.0,0.80384341]
[1759415409526,1.08532111,119780.0,119770.0,0.80384341]
[1759415410329,0.32760111,119780.0,119770.0,0.80384341]
[1759415410530,1.08528111,119780.0,119770.0,0.80384341]
[1759415410732,0.76168,119780.0,119770.0,0.80384341]
[1759415410934,1.08228111,119780.0,119770.0,0.80384341]
[1759415411528,0.001,119780.0,119770.0,1.52744452]
[1759415411734,0.8411092,119790.0,119780.0,0.1194352]
[1759415411925,0.8411092,119790.0,119780.0,1.12743742]
[1759415412126,1.16471031,119790.0,119780.0,1.12743742]
[1759415412328,1.16471031,119790.0,119780.0,0.80383631]
[1759415413131,0.001,119790.0,119780.0,1.12743742]
[1759415413336,0.80082041,119810.0,119800.0,0.1194213]
[1759415413529,0.4772193,119810.0,119800.0,0.80382241]
[1759415413730,0.80082041,119810.0,119800.0,0.80382241]
[1759415413930,0.80082041,119810.0,119800.0,0.3968]
[1759415414130,0.80082041,119810.0,119800.0,0.4802213]
[1759415414334,1.12442152,119810.0,119800.0,0.4802213]
[1759415414536,1.12442152,119810.0,119800.0,0.3968]
[1759415414828,1.13042152,119810.0,119800.0,0.3968]
[1759415415026,0.80682041,119810.0,119800.0,0.3968]
[1759415415333,0.81526699,119810.0,119800.0,0.3968]
[1759415415536,1.5388681,119810.0,119800.0,0.3968]
[1759415418035,1.21526699,119810.0,119800.0,0.4802212]
[1759415418336,0.82150699,119810.0,119800.0,0.4802212]
[1759415418532,1.57906699,119810.0,119800.0,0.4802212]
[1759415418734,1.9026681,119810.0,119800.0,0.4802212]
[1759415419244,1.1451081,119810.0,119800.0,0.4802212]
[1759415419544,1.9026281,119810.0,119800.0,0.3968]
[1759415419746,1.1451081,119810.0,119800.0,0.4802213]
[1759415419934,1.9026281,119810.0,119800.0,0.4802213]
[1759415420636,1.9025881,119810.0,119800.0,0.4802213]
[1759415421943,1.9025881,119810.0,119800.0,0.3968]
[1759415422145,1.9025881,119810.0,119800.0,0.4802213]
[1759415422843,1.1451081,119810.0,119800.0,0.4802213]
[1759415423045,1.9025881,119810.0,119800.0,0.4802213]
[1759415424050,1.1451081,119810.0,119800.0,0.4802213]
[1759415424248,1.9025481,119810.0,119800.0,0.4802213]
[1759415426151,1.1451081,119810.0,119800.0,0.4802213]
[1759415426340,1.9025481,119810.0,119800.0,0.4802213]
[1759415427148,1.1451081,119810.0,119800.0,0.4802213]
[1759415427351,1.08708111,119810.0,119800.0,0.80382241]
[1759415427646,0.41305541,119810.0,119800.0,0.80382241]
[1759415428148,1.17045541,119810.0,119800.0,0.80382241]
[1759415428346,0.00604,119810.0,119800.0,0.8410213]
[1759415428650,0.8468543,119810.0,119800.0,1.2410213]
[1759415429243,0.0894543,119810.0,119800.0,1.2410213]
[1759415429444,0.8468543,119810.0,119800.0,1.56411075]
[1759415429643,0.00604,119810.0,119800.0,1.56411075]
[1759415429938,0.7574,119820.0,119810.0,0.1203843]
[1759415430152,0.7574,119820.0,119810.0,0.80427375]
[1759415430444,1.4869863,119820.0,119810.0,0.39777]
[1759415430644,1.4869863,119820.0,119810.0,0.4811843]
[1759415430949,0.41466038,119830.0,119820.0,0.1203774]
[1759415431150,1.16385225,119830.0,119820.0,0.4811774]
[1759415431541,1.17240416,119830.0,119820.0,0.4811774]
[1759415432343,0.41504416,119830.0,119820.0,0.4811774]
[1759415432544,1.16385225,119830.0,119820.0,0.4811774]
[1759415433038,1.16385225,119830.0,119820.0,0.39777]
[1759415433244,1.16385225,119830.0,119820.0,0.4811774]
[1759415433749,1.16389225,119830.0,119820.0,0.4971774]
[1759415434045,4e-05,119830.0,119820.0,0.4971774]
[1759415434245,0.32312945,119830.0,119820.0,0.4971774]
[1759415434451,0.64104,119830.0,119820.0,0.4971774]
[1759415434652,4e-05,119830.0,119820.0,0.4971774]
[1759415434951,1.08044945,119830.0,119820.0,0.4971774]
[1759415435752,1.16384985,119830.0,119820.0,0.4971774]
[1759415436144,0.8407604,119830.0,119820.0,0.4971774]
[1759415436344,1.16384985,119830.0,119820.0,0.4971774]
[1759415436551,1.08044945,119830.0,119820.0,0.4971774]
[1759415436951,1.16384985,119830.0,119820.0,0.4971774]
[1759415437154,1.08048945,119830.0,119820.0,0.4971774]
[1759415437548,4e-05,119830.0,119820.0,0.4971774]
[1759415437849,0.39025305,119850.0,119840.0,0.0971534]
[1759415437850,4e-05,119850.0,119840.0,0.0971534]
[1759415438048,2.12008518,119870.0,119860.0,0.03697]
[1759415438251,0.0833795,119860.0,119850.0,0.03697]
[1759415438558,0.7295584,119860.0,119850.0,0.03697]
[1759415438852,0.40646895,119860.0,119850.0,0.4811565]
[1759415439243,1.16414895,119860.0,119850.0,0.39777]
[1759415439448,1.23084674,119860.0,119850.0,0.01376]
[1759415439848,0.0833865,119850.0,119840.0,0.37656]
[1759415440049,0.7295654,119850.0,119840.0,0.37656]
[1759415440249,1.1295654,119850.0,119840.0,0.002]
[1759415440451,0.0833934,119840.0,119830.0,0.01376]
[1759415440648,0.8411934,119840.0,119830.0,0.03697]
[1759415440852,1.16428285,119840.0,119830.0,0.03697]
[1759415441056,1.16428285,119840.0,119830.0,0.39777]
[1759415441656,1.56436285,119840.0,119830.0,0.39777]
[1759415441850,1.16436285,119840.0,119830.0,0.39777]
[1759415442050,0.40648285,119840.0,119830.0,0.39777]
[1759415442251,1.16428285,119840.0,119830.0,0.4841704]
[1759415442452,0.0833934,119840.0,119830.0,0.4841704]
[1759415442752,1.16436285,119840.0,119830.0,0.40077]
[1759415443059,1.16476285,119840.0,119830.0,0.40077]
[1759415443649,0.40648285,119840.0,119830.0,0.40077]
[1759415443849,1.16476285,119840.0,119830.0,0.03997]
[1759415444345,1.56476285,119840.0,119830.0,0.03997]
[1759415444543,1.92556285,119840.0,119830.0,0.003]
[1759415444752,1.4903723,119840.0,119830.0,0.003]
[1759415444956,1.56516285,119840.0,119830.0,0.003]
[1759415445155,1.2421134,119840.0,119830.0,0.003]
[1759415445354,1.56524285,119840.0,119830.0,0.003]
[1759415445657,0.80652285,119840.0,119830.0,0.003]
[1759415445957,1.56524285,119840.0,119830.0,0.003]
[1759415446152,0.0834005,119830.0,119820.0,0.4811774]
[1759415446348,0.40648995,119830.0,119820.0,0.39777]
[1759415447956,1.16516995,119830.0,119820.0,0.39777]
[1759415448853,0.40648995,119830.0,119820.0,0.40377]
[1759415449054,1.16576995,119830.0,119820.0,0.40377]
[1759415449255,0.40652995,119830.0,119820.0,0.40377]
[1759415449454,1.16568995,119830.0,119820.0,0.39777]
[1759415449753,1.16568995,119830.0,119820.0,0.40377]
[1759415450358,0.40652995,119830.0,119820.0,0.40377]
[1759415450559,1.16568995,119830.0,119820.0,0.40377]
[1759415451655,1.16568995,119830.0,119820.0,0.38056]
[1759415451860,1.16568995,119830.0,119820.0,0.01976]
[1759415452160,1.16568995,119830.0,119820.0,0.006]
[1759415452161,2.2495794,119830.0,119820.0,0.006]
[1759415452360,0.0834143,119810.0,119800.0,0.37456]
[1759415452560,1.16554375,119810.0,119800.0,0.37456]
[1759415452758,1.16554375,119810.0,119800.0,0.39777]
[1759415452953,1.16554375,119810.0,119800.0,0.37456]
[1759415454155,1.92634375,119810.0,119800.0,0.006]
[1759415454352,0.0834213,119800.0,119790.0,0.37456]
[1759415454559,0.0834282,119790.0,119780.0,0.01376]
[1759415454863,1.55578418,119790.0,119780.0,0.03697]
[1759415455355,1.24110227,119790.0,119780.0,0.39777]
[1759415455555,0.48198227,119790.0,119780.0,0.4812052]
[1759415455860,0.40651765,119790.0,119780.0,0.4812052]
[1759415456059,1.16579765,119790.0,119780.0,0.4812052]
[1759415457060,1.16587765,119790.0,119780.0,0.4812052]
[1759415457459,0.0834282,119790.0,119780.0,0.4812052]
[1759415457658,1.16579765,119790.0,119780.0,0.8812052]
[1759415458662,1.16579765,119790.0,119780.0,0.8842052]
[1759415458862,1.16579765,119790.0,119780.0,0.4842052]
[1759415459058,0.40651765,119790.0,119780.0,0.8842052]
[1759415459259,1.16571765,119790.0,119780.0,0.8842052]
[1759415460461,0.40650375,119810.0,119800.0,0.01397]
[1759415460763,0.41466655,119810.0,119800.0,0.39673]
[1759415461064,1.17386655,119810.0,119800.0,0.8409512]
[1759415461367,0.0834427,119830.0,119820.0,0.03593]
[1759415461664,1.16581215,119830.0,119820.0,0.03593]
[1759415461866,1.16581215,119830.0,119820.0,0.39673]
[1759415462462,1.16581215,119830.0,119820.0,0.4801373]
[1759415462763,0.91067129,119830.0,119820.0,0.4801373]
[1759415462965,1.23976074,119830.0,119820.0,0.4801373]
[1759415463163,1.23976074,119830.0,119820.0,0.39673]
[1759415463364,1.24815935,119830.0,119820.0,0.39673]
[1759415463562,1.24215935,119830.0,119820.0,0.39673]
[1759415463757,1.24515935,119830.0,119820.0,0.39673]
[1759415464064,1.24815935,119830.0,119820.0,0.39673]
[1759415464360,0.48887935,119830.0,119820.0,0.4801373]
[1759415464564,1.24811935,119830.0,119820.0,0.4801373]
[1759415466872,1.24811935,119830.0,119820.0,0.39673]
[1759415467170,0.42093076,119830.0,119820.0,0.4801373]
[1759415467470,1.18025076,119830.0,119820.0,0.4801373]
[1759415468773,1.18025076,119830.0,119820.0,0.39673]
[1759415469875,1.18025076,119830.0,119820.0,0.4801373]
[1759415470071,1.18025076,119830.0,119820.0,0.39673]
[1759415473079,0.85716131,119830.0,119820.0,0.39673]
[1759415473280,1.18025076,119830.0,119820.0,0.39673]
[1759415474580,1.18025076,119830.0,119820.0,0.4801373]
[1759415475875,0.42093076,119830.0,119820.0,0.4801373]
[1759415476076,1.18029076,119830.0,119820.0,0.4801373]
[1759415478783,1.18029076,119830.0,119820.0,0.39673]
[1759415478983,1.50338021,119830.0,119820.0,0.37477]
[1759415479480,0.09784131,119830.0,119820.0,0.39673]
[1759415479688,0.42093076,119830.0,119820.0,0.4801373]
[1759415479984,1.17993076,119830.0,119820.0,0.4801373]
[1759415480180,0.42093076,119830.0,119820.0,0.4801373]
[1759415480384,0.41253215,119830.0,119820.0,0.4801373]
[1759415480590,1.17165215,119830.0,119820.0,0.4801373]
[1759415481086,0.41253215,119830.0,119820.0,0.4801373]
[1759415481392,1.17157215,119830.0,119820.0,0.8801373]
[1759415482386,1.18004893,119830.0,119820.0,0.8801373]
[1759415482688,1.17157215,119830.0,119820.0,0.8801373]
[1759415484287,1.17157215,119830.0,119820.0,0.4801373]
[1759415484488,0.8484827,119830.0,119820.0,0.4801373]
[1759415484784,1.17157215,119830.0,119820.0,0.4801373]
[1759415485178,1.18004655,119830.0,119820.0,0.39673]
[1759415485785,1.18004655,119830.0,119820.0,0.4801373]
[1759415485985,0.0894427,119830.0,119820.0,0.4801373]
[1759415486185,1.17133215,119830.0,119820.0,0.4801373]
[1759415487991,1.17125215,119830.0,119820.0,0.4801373]
[1759415488188,1.17120448,119830.0,119820.0,0.4801373]
[1759415488388,1.17120448,119830.0,119820.0,0.39673]
[1759415489290,1.17120448,119830.0,119820.0,0.4801373]
[1759415489487,0.8481627,119830.0,119820.0,0.4801373]
[1759415489687,1.17120448,119830.0,119820.0,0.4801373]
[1759415490192,1.17120448,119830.0,119820.0,0.39673]
[1759415490892,1.17104448,119830.0,119820.0,0.39673]
[1759415491292,0.41248448,119830.0,119820.0,0.80317908]
[1759415491492,0.8479627,119830.0,119820.0,0.80317908]
[1759415491694,1.17100448,119830.0,119820.0,0.80317908]
[1759415492790,0.41248448,119830.0,119820.0,0.80317908]
[1759415492990,1.17100448,119830.0,119820.0,0.80317908]
[1759415493392,1.17100448,119830.0,119820.0,0.4801373]
[1759415493688,1.17100448,119830.0,119820.0,0.80317908]
[1759415494193,0.8479627,119830.0,119820.0,0.4801373]
[1759415494385,1.17100448,119830.0,119820.0,0.4801373]
[1759415494784,1.17100448,119830.0,119820.0,0.39673]
[1759415494994,1.17100448,119830.0,119820.0,0.4801373]
[1759415495595,1.49404626,119830.0,119820.0,0.4801373]
[1759415495794,1.49404626,119830.0,119820.0,0.39673]
[1759415496895,1.49404626,119830.0,119820.0,0.4801373]
[1759415498098,1.49404626,119830.0,119820.0,0.39673]
[1759415499698,1.49404626,119830.0,119820.0,0.37477]
[1759415499898,0.73552626,119830.0,119820.0,0.39764]
[1759415500093,0.41248448,119830.0,119820.0,0.39764]
[1759415500393,1.49368626,119830.0,119820.0,0.39764]
[1759415500793,0.73552626,119830.0,119820.0,0.39764]
[1759415500995,1.49364626,119830.0,119820.0,0.39764]
[1759415502201,1.49364626,119830.0,119820.0,0.37477]
[1759415502592,1.49364626,119830.0,119820.0,0.39764]
[1759415503999,1.49356626,119830.0,119820.0,0.39764]
[1759415505300,0.73552626,119830.0,119820.0,0.39764]
[1759415505495,1.49360626,119830.0,119820.0,0.39764]
[1759415507501,1.49360626,119830.0,119820.0,0.4810473]
[1759415507502,1.49344626,119830.0,119820.0,0.4810473]
[1759415508004,1.49344626,119830.0,119820.0,0.39764]
[1759415508796,1.49344626,119830.0,119820.0,0.01397]
[1759415508998,1.49344626,119830.0,119800.0,0.39764]
[1759415508999,0.0834142,119810.0,119800.0,0.39764]
[1759415509295,1.48733776,119810.0,119800.0,0.37477]
[1759415509502,1.48733776,119810.0,119800.0,0.39764]
[1759415510099,1.48733776,119810.0,119800.0,0.37477]
[1759415510603,1.48733776,119810.0,119800.0,0.40464]
[1759415510999,1.48733776,119810.0,119800.0,0.38177]
[1759415511802,1.48733776,119810.0,119800.0,0.37477]
[1759415512001,1.48733776,119810.0,119800.0,0.37877]
[1759415512405,1.48733776,119810.0,119800.0,0.01797]
[1759415512605,1.48733776,119810.0,119800.0,0.01397]
[1759415512898,0.0834212,119800.0,119790.0,0.01397]
[1759415513105,1.11851709,119800.0,119790.0,0.01397]
[1759415513703,0.0834281,119790.0,119780.0,0.39727]
[1759415513905,1.48739166,119790.0,119780.0,0.39727]
[1759415514304,1.48739166,119790.0,119780.0,0.3744]
[1759415514508,1.48735166,119790.0,119780.0,0.39727]
[1759415516312,1.49578676,119790.0,119780.0,0.0136]
[1759415516804,1.49578676,119790.0,119780.0,0.0146]
[1759415517010,1.49578676,119790.0,119780.0,0.001]
[1759415517207,0.0834351,119780.0,119770.0,0.3744]
[1759415517402,0.72951866,119780.0,119770.0,0.39714]
[1759415518007,0.8411551,119780.0,119770.0,0.39714]
[1759415518210,1.48723866,119780.0,119770.0,0.39714]
[1759415519006,0.72951866,119780.0,119770.0,0.39714]
[1759415519209,0.72951866,119780.0,119770.0,0.480582]
[1759415519412,1.48719866,119780.0,119770.0,0.481582]
[1759415519713,1.48723866,119780.0,119770.0,0.481582]
[1759415519909,0.72951866,119780.0,119770.0,0.481582]
[1759415520304,0.64608356,119780.0,119770.0,0.481582]
[1759415520513,0.38901233,119800.0,119790.0,0.03615]
[1759415520717,1.55327521,119800.0,119790.0,0.39695]
[1759415520913,0.79547521,119800.0,119790.0,0.39695]
[1759415521115,1.55331521,119800.0,119790.0,0.39695]
[1759415521608,0.79547521,119800.0,119790.0,0.39695]
[1759415521814,1.55331521,119800.0,119790.0,0.39695]
[1759415522016,1.55731521,119800.0,119790.0,0.39695]
[1759415523112,1.56581846,119800.0,119790.0,0.39695]
[1759415524011,0.80797846,119800.0,119790.0,0.39695]
[1759415524216,1.56581846,119800.0,119790.0,0.39695]
[1759415524711,1.56581846,119800.0,119790.0,0.37421]
[1759415524916,1.56581846,119800.0,119790.0,0.39695]
[1759415525215,1.56581846,119800.0,119790.0,0.01341]
[1759415525416,1.88886024,119800.0,119790.0,0.01341]
[1759415525716,1.88886024,119800.0,119790.0,0.03615]
[1759415526414,1.88886024,119800.0,119790.0,0.01341]
[1759415526415,1.56581846,119800.0,119790.0,0.01341]
[1759415526817,1.88886024,119800.0,119790.0,0.01341]
[1759415527018,0.0834281,119790.0,119780.0,0.39695]
[1759415527210,0.72951166,119790.0,119780.0,0.39695]
[1759415527716,0.72951166,119790.0,119780.0,0.37421]
[1759415528512,0.0834351,119780.0,119770.0,0.39714]
[1759415528714,1.48727866,119780.0,119770.0,0.39714]
[1759415529617,1.48727866,119780.0,119770.0,0.3744]
[1759415529921,1.48727866,119780.0,119770.0,0.39714]
[1759415530218,0.72951866,119780.0,119770.0,0.39714]
[1759415530420,0.72951866,119780.0,119770.0,0.481582]
[1759415530721,1.48743866,119780.0,119770.0,0.481582]
[1759415530921,1.48743866,119780.0,119770.0,0.39814]
[1759415531215,0.40651688,119780.0,119770.0,0.39814]
[1759415531423,1.48743866,119780.0,119770.0,0.480582]
[1759415532218,1.48743866,119780.0,119770.0,0.39714]
[1759415532519,1.48743866,119780.0,119770.0,0.480582]
[1759415533520,1.48743866,119780.0,119770.0,0.39714]
[1759415534419,1.48743866,119780.0,119770.0,0.3744]
[1759415534620,1.48743866,119780.0,119770.0,0.39714]
[1759415535419,0.72955866,119780.0,119770.0,0.39714]
[1759415535621,1.48731866,119780.0,119770.0,0.39714]
[1759415536121,0.72955866,119780.0,119770.0,0.39714]
[1759415536321,1.48731866,119780.0,119770.0,0.480582]
[1759415536724,0.72955866,119780.0,119770.0,0.480582]
[1759415536922,1.48731866,119780.0,119770.0,0.480582]
[1759415537623,0.72955866,119780.0,119770.0,0.480582]
[1759415537919,0.0834751,119780.0,119770.0,0.480582]
[1759415538123,4e-05,119780.0,119770.0,1.20362378]
[1759415538322,1.08088178,119780.0,119770.0,1.20362378]
[1759415538622,0.32308178,119780.0,119770.0,1.20362378]
[1759415538924,1.08088178,119780.0,119770.0,1.20362378]
[1759415539429,1.16431678,119780.0,119770.0,1.20362378]
[1759415540418,1.16427678,119780.0,119770.0,1.20362378]
[1759415542927,0.40651678,119780.0,119770.0,1.20362378]
[1759415543124,1.16427678,119780.0,119770.0,1.20362378]
[1759415543820,1.16427678,119780.0,119770.0,0.880582]
[1759415544020,1.16427678,119780.0,119770.0,1.20362378]
[1759415544525,0.841235,119780.0,119770.0,1.20362378]
[1759415544726,1.16427678,119780.0,119770.0,1.20362378]
[1759415545027,1.48731856,119780.0,119770.0,1.20362378]
[1759415545428,1.16427678,119780.0,119770.0,1.20362378]
[1759415545928,0.083475,119780.0,119770.0,1.20362378]
[1759415546115,1.04947678,119780.0,119770.0,1.20362378]
[1759415546320,1.08084178,119780.0,119770.0,1.20362378]
[1759415546727,0.32308178,119780.0,119770.0,1.20362378]
[1759415546927,1.08084178,119780.0,119770.0,1.20362378]
[1759415547527,0.7578,119780.0,119770.0,1.20362378]
[1759415547727,1.08084178,119780.0,119770.0,1.20362378]
[1759415547927,1.08084178,119780.0,119770.0,0.880582]
[1759415548126,1.08084178,119780.0,119770.0,1.20362378]
[1759415548327,4e-05,119780.0,119770.0,1.20379423]
[1759415548629,0.7578,119780.0,119770.0,1.20379423]
[1759415548929,0.841235,119780.0,119770.0,1.20379423]
[1759415549128,0.7578,119780.0,119770.0,1.20379423]
[1759415549327,4e-05,119780.0,119770.0,1.20379423]
[1759415551027,4e-05,119780.0,119770.0,1.96155423]
[1759415551621,4e-05,119780.0,119770.0,1.20379423]
[1759415551817,4e-05,119780.0,119770.0,1.96155423]
[1759415552223,4e-05,119780.0,119770.0,1.20379423]
[1759415552423,4e-05,119780.0,119770.0,1.638342]
[1759415552624,4e-05,119780.0,119770.0,1.96155423]
[1759415553729,4e-05,119780.0,119770.0,1.20379423]
[1759415553929,4e-05,119780.0,119770.0,1.96151423]
[1759415555832,4e-05,119780.0,119770.0,1.20379423]
[1759415556032,4e-05,119780.0,119770.0,1.96151423]
[1759415556328,0.083475,119780.0,119770.0,1.20379423]
[1759415556532,0.40668723,119780.0,119770.0,0.480582]
[1759415556729,0.40668723,119780.0,119770.0,0.39714]
[1759415556934,0.083442,119770.0,119760.0,0.3744]
[1759415557120,1.48758646,119770.0,119760.0,0.3744]
[1759415557320,1.16437423,119770.0,119760.0,0.3744]
[1759415557532,1.16437423,119770.0,119760.0,0.0136]
[1759415557737,1.23078177,119770.0,119760.0,0.0136]
[1759415558532,1.23078177,119770.0,119760.0,0.0166]
[1759415558728,1.23078177,119770.0,119760.0,0.0136]
[1759415558929,1.23078177,119770.0,119760.0,0.0176]
[1759415559127,0.444275,119780.0,119770.0,0.01289]
[1759415559428,1.16440723,119780.0,119770.0,0.03391]
[1759415560223,0.083442,119770.0,119760.0,0.4588477]
[1759415560423,0.40665423,119770.0,119760.0,0.0146]
[1759415560735,0.80665423,119770.0,119760.0,0.0146]
[1759415561035,0.87230092,119770.0,119760.0,0.03462]
[1759415561436,0.54908869,119770.0,119760.0,0.03462]
[1759415561626,0.87230092,119770.0,119760.0,0.03462]
[1759415561832,0.47230092,119770.0,119760.0,0.0166]
[1759415562027,0.47230092,119770.0,119760.0,0.0136]
[1759415562232,0.47230092,119770.0,119760.0,0.03462]
[1759415562434,0.47230092,119770.0,119760.0,0.0136]
[1759415563134,0.47230092,119770.0,119760.0,0.0146]
[1759415563437,0.79551315,119770.0,119760.0,0.0146]
[1759415563731,1.19551315,119770.0,119760.0,0.001]
[1759415563932,0.0834559,119750.0,119740.0,0.01341]
[1759415564128,1.16506813,119750.0,119740.0,0.01341]
[1759415564329,1.56506813,119750.0,119740.0,0.01341]
[1759415564529,0.0834629,119740.0,119730.0,0.39471]
[1759415564737,0.40667513,119740.0,119730.0,0.39471]
[1759415565338,0.72988736,119740.0,119730.0,0.39471]
[1759415565637,0.40667513,119740.0,119730.0,0.39471]
[1759415565832,0.40667513,119740.0,119730.0,0.03391]
[1759415566042,1.88832736,119740.0,119730.0,0.002]
[1759415566232,2.24912736,119740.0,119730.0,0.002]
[1759415566631,0.0834699,119730.0,119720.0,0.0129933]
[1759415566835,0.0834838,119710.0,119700.0,0.03391]
[1759415567036,0.40669603,119710.0,119700.0,0.03391]
[1759415567241,1.16585603,119710.0,119700.0,0.03391]
[1759415567635,0.40669603,119710.0,119700.0,0.03391]